fUST/lending_fUST_20250115
["ID","MTS","AMOUNT","RATE_DAILY","PERIOD"]
[348962671,1736896246176,-4170.23,0.00022602,2]
[348962672,1736896246186,-808.12,0.00022602,3]
[348962673,1736896246195,-1633.4,0.00022602,3]
[348962674,1736896246204,-151.0,0.00022602,7]
[348962675,1736896246214,-2315.74,0.00022602,3]
[348962676,1736896246224,-559.66,0.00022602,3]
[348962677,1736896246233,-500.0,0.00022602,3]
[348962678,1736896246244,-852.01,0.00022602,3]
[348962679,1736896246253,-500.0,0.00022602,3]
[348962680,1736896246363,-151.0,0.00022602,7]
[348962681,1736896246373,-1229.51,0.00022602,3]
[348962682,1736896246382,-151.0,0.00022602,7]
[348962683,1736896246392,-688.77,0.00022602,3]
[348962684,1736896246402,-151.0,0.00022602,7]
[348962685,1736896246412,-694.82,0.00022602,3]
[348962686,1736896246422,-776.56,0.00022602,3]
[348962687,1736896246431,-1540.76,0.00022602,3]
[348962688,1736896246442,-1661.62,0.00022602,3]
[348962689,1736896246451,-500.0,0.00022602,3]
[348962690,1736896246462,-151.0,0.00022602,7]
[348962691,1736896246471,-500.0,0.00022602,3]
[348962692,1736896246485,-459.46048218,0.00022602,3]
[348962693,1736896246494,-831.19,0.00022602,3]
[348962694,1736896246504,-151.0,0.00022602,7]
[348962695,1736896246514,-568.33,0.00022602,3]
[348962696,1736896246525,-800.85,0.00022602,3]
[348962697,1736896246535,-500.0,0.00022602,3]
[348962698,1736896246544,-500.0,0.00022602,3]
[348962699,1736896246555,-668.61,0.00022602,3]
[348962700,1736896246565,-500.0,0.00022602,3]
[348962701,1736896246574,-688.17,0.00022602,3]
[348962702,1736896246584,-500.0,0.00022602,3]
[348962703,1736896246594,-1818.87,0.00022602,3]
[348962704,1736896246603,-500.0,0.00022602,3]
[348962705,1736896246613,-500.0,0.00022602,3]
[348962706,1736896246623,-204.25111102,0.0002265,2]
[348962707,1736896246632,-16986.7,0.000227,2]
[348962708,1736896246641,-3037.97,0.000227,14]
[348962709,1736896246651,-7640.48,0.000227,14]
[348962710,1736896246660,-151.0,0.000227,7]
[348962711,1736896246669,-151.0,0.000227,7]
[348962712,1736896246679,-204.25111102,0.00022733,2]
[348962713,1736896246689,-150.2,0.00022739,3]
[348962714,1736896246698,-150.2,0.00022739,3]
[348962715,1736896246708,-150.2,0.00022739,2]
[348962716,1736896246717,-500.0,0.00022739,3]
[348962717,1736896246727,-151.0,0.00022739,7]
[348962718,1736896246736,-3607.86,0.00022739,3]
[348962719,1736896246746,-151.0,0.00022739,7]
[348962720,1736896246758,-583.60393498,0.00022739,3]
[348962721,1736896246768,-500.0,0.00022739,3]
[348962722,1736896246780,-534.91,0.00022739,3]
[348962723,1736896246789,-591.27,0.00022739,3]
[348962724,1736896246800,-500.0,0.00022739,3]
[348962725,1736896246809,-643.52,0.00022739,3]
[348962726,1736896246819,-523.71,0.00022739,3]
[348962727,1736896246829,-500.0,0.00022739,3]
[348962728,1736896246838,-184.477619,0.00022739,7]
[348962729,1736896246847,-184.477619,0.00022739,7]
[348962730,1736896246857,-1376.46,0.00022739,3]
[348962731,1736896246866,-500.0,0.00022739,3]
[348962732,1736896246875,-3679.92,0.00022739,3]
[348962733,1736896246885,-151.0,0.00022739,7]
[348962734,1736896246894,-530.1,0.00022739,3]
[348962735,1736896246904,-500.0,0.00022739,3]
[348962736,1736896246914,-500.0,0.00022739,3]
[348962737,1736896246923,-151.0,0.00022739,7]
[348962738,1736896246932,-154.982918,0.00022739,7]
[348962739,1736896246941,-500.0,0.00022739,3]
[348962740,1736896246950,-500.0,0.00022739,2]
[348962741,1736896246959,-500.0,0.00022739,3]
[348962742,1736896246968,-1374.4,0.00022739,3]
[348962743,1736896246977,-696.23,0.00022739,3]
[348962744,1736896246986,-629.1,0.00022739,3]
[348962745,1736896246996,-500.0,0.00022739,3]
[348962746,1736896247004,-707.0,0.00022739,3]
[348962747,1736896247013,-500.0,0.00022739,3]
[348962748,1736896247023,-226.372542,0.00022739,7]
[348962749,1736896247032,-17532.28,0.00022739,3]
[348962750,1736896247041,-954.81,0.00022739,3]
[348962751,1736896247050,-4170.23,0.00022739,2]
[348962752,1736896247059,-808.12,0.00022739,3]
[348962753,1736896247069,-1633.4,0.00022739,3]
[348962754,1736896247078,-151.0,0.00022739,7]
[348962755,1736896247087,-2315.74,0.00022739,3]
[348962756,1736896247097,-559.66,0.00022739,3]
[348962757,1736896247106,-500.0,0.00022739,3]
[348962758,1736896247115,-852.01,0.00022739,3]
[348962759,1736896247124,-500.0,0.00022739,3]
[348962760,1736896247133,-151.0,0.00022739,7]
[348962761,1736896247143,-1229.51,0.00022739,3]
[348962762,1736896247152,-151.0,0.00022739,7]
[348962763,1736896247161,-688.77,0.00022739,3]
[348962764,1736896247171,-151.0,0.00022739,7]
[348962765,1736896247180,-694.82,0.00022739,3]
[348962766,1736896247189,-776.56,0.00022739,3]
[348962767,1736896247198,-1540.76,0.00022739,3]
[348962768,1736896247208,-1661.62,0.00022739,3]
[348962769,1736896247218,-500.0,0.00022739,3]
[348962770,1736896247227,-151.0,0.00022739,7]
[348962771,1736896247237,-500.0,0.00022739,3]
[348962772,1736896247247,-831.19,0.00022739,3]
[348962773,1736896247257,-177.216676,0.00022739,7]
[348962774,1736896247266,-568.33,0.00022739,3]
[348962775,1736896247275,-800.85,0.00022739,3]
[348962776,1736896247285,-500.0,0.00022739,3]
[348962777,1736896247294,-500.0,0.00022739,3]
[348962778,1736896247304,-668.61,0.00022739,3]
[348962779,1736896247313,-500.0,0.00022739,3]
[348962780,1736896247322,-688.17,0.00022739,3]
[348962781,1736896247331,-500.0,0.00022739,3]
[348962782,1736896247340,-1818.87,0.00022739,3]
[348962783,1736896247349,-500.0,0.00022739,3]
[348962784,1736896247358,-244.394938,0.00022744,7]
[348962785,1736896247368,-600.0,0.00022744,2]
[348962786,1736896247377,-3362.17863802,0.00022777,5]
[348962787,1736896247386,-151.0,0.00022777,7]
[348962788,1736896247395,-151.0,0.00022777,7]
[348962789,1736896247405,-151.0,0.000228,8]
[348962790,1736896247415,-151.0,0.00022812,7]
[348962791,1736896247424,-204.25111102,0.00022817,2]
[348962792,1736896247434,-63837.58488715,0.0002287,2]
[348962793,1736896247443,-151.0,0.0002287,7]
[348962794,1736896247452,-151.0,0.0002287,7]
[348962795,1736896247461,-184.477619,0.0002287,7]
[348962796,1736896247471,-184.477619,0.0002287,7]
[348962797,1736896247484,-151.0,0.0002287,7]
[348962798,1736896247494,-151.0,0.0002287,7]
[348962799,1736896247503,-151.0,0.0002287,7]
[348962800,1736896247512,-151.0,0.0002287,7]
[348962801,1736896247524,-151.0,0.00022876,7]
[348962802,1736896247533,-3607.86,0.00022876,3]
[348962803,1736896247542,-151.0,0.00022876,7]
[348962804,1736896247554,-500.0,0.00022876,3]
[348962805,1736896247564,-534.91,0.00022876,3]
[348962806,1736896247574,-591.27,0.00022876,3]
[348962807,1736896247584,-500.0,0.00022876,3]
[348962808,1736896247593,-643.52,0.00022876,3]
[348962809,1736896247602,-523.71,0.00022876,3]
[348962810,1736896247611,-500.0,0.00022876,3]
[348962811,1736896247620,-184.477619,0.00022876,7]
[348962812,1736896247630,-184.477619,0.00022876,7]
[348962813,1736896247640,-1376.46,0.00022876,3]
[348962814,1736896247650,-500.0,0.00022876,3]
[348962815,1736896247659,-3679.92,0.00022876,3]
[348962816,1736896247669,-530.1,0.00022876,3]
[348962817,1736896247678,-500.0,0.00022876,3]
[348962818,1736896247687,-500.0,0.00022876,3]
[348962819,1736896247697,-151.0,0.00022876,7]
[348962820,1736896247706,-500.0,0.00022876,3]
[348962821,1736896247715,-500.0,0.00022876,2]
[348962822,1736896247724,-500.0,0.00022876,3]
[348962823,1736896247734,-1374.4,0.00022876,3]
[348962824,1736896247743,-696.23,0.00022876,3]
[348962825,1736896247753,-629.1,0.00022876,3]
[348962826,1736896247763,-500.0,0.00022876,3]
[348962827,1736896247772,-707.0,0.00022876,3]
[348962828,1736896247782,-500.0,0.00022876,3]
[348962829,1736896247791,-17532.28,0.00022876,3]
[348962830,1736896247800,-954.81,0.00022876,3]
[348962831,1736896247809,-4170.23,0.00022876,2]
[348962832,1736896247818,-808.12,0.00022876,3]
[348962833,1736896247827,-1633.4,0.00022876,3]
[348962834,1736896247837,-151.0,0.00022876,7]
[348962835,1736896247846,-2315.74,0.00022876,3]
[348962836,1736896247856,-559.66,0.00022876,3]
[348962837,1736896247865,-500.0,0.00022876,3]
[348962838,1736896247874,-852.01,0.00022876,3]
[348962839,1736896247884,-500.0,0.00022876,3]
[348962840,1736896247893,-151.0,0.00022876,7]
[348962841,1736896247904,-1229.51,0.00022876,3]
[348962842,1736896247913,-151.0,0.00022876,7]
[348962843,1736896247923,-688.77,0.00022876,3]
[348962844,1736896247934,-694.82,0.00022876,3]
[348962845,1736896247943,-776.56,0.00022876,3]
[348962846,1736896247953,-1540.76,0.00022876,3]
[348962847,1736896247962,-1661.62,0.00022876,3]
[348962848,1736896247972,-257.61145339,0.00022876,3]
[348962849,1736896247981,-243.428022,0.00022876,7]
[348962850,1736896247991,-500.0,0.00022876,3]
[348962851,1736896248000,-831.19,0.00022876,3]
[348962852,1736896248009,-568.33,0.00022876,3]
[348962853,1736896248018,-800.85,0.00022876,3]
[348962854,1736896248027,-500.0,0.00022876,3]
[348962855,1736896248037,-500.0,0.00022876,3]
[348962856,1736896248047,-668.61,0.00022876,3]
[348962857,1736896248056,-500.0,0.00022876,3]
[348962858,1736896248065,-688.17,0.00022876,3]
[348962859,1736896248074,-500.0,0.00022876,3]
[348962860,1736896248084,-1818.87,0.00022876,3]
[348962861,1736896248093,-500.0,0.00022876,3]
[348962862,1736896248103,-151.0,0.000229,5]
[348962863,1736896248112,-151.0,0.000229,7]
[348962864,1736896248122,-151.0,0.000229,9]
[348962865,1736896248131,-204.25111102,0.000229,2]
[348962866,1736896248140,-204.25111102,0.00022983,2]
[348962867,1736896248149,-606.70474889,0.00022988,2]
[348962868,1736896248159,-500.0,0.00023,2]
[348962869,1736896248169,-500.0,0.00023,2]
[348962870,1736896248178,-500.0,0.00023,2]
[348962871,1736896248188,-7438.69753278,0.00023,2]
[348962872,1736896248197,-244.26294442,0.00023,2]
[348962873,1736896248207,-250.0,0.00023,2]
[348962874,1736896248217,-33561.64200687,0.00023,2]
[348962875,1736896248226,-11653.20659813,0.00023,7]
[348962876,1736896248235,-151.0,0.00023,8]
[348962877,1736896248246,-172.954272,0.00023,7]
[348962878,1736896248256,-151.0,0.00023,9]
[348962879,1736896248266,-7438.69753278,0.00023,3]
[348962880,1736896248275,-151.0,0.00023,7]
[348962881,1736896248285,-3388.01431376,0.00023,10]
[348962882,1736896248294,-199.58,0.00023013,3]
[348962883,1736896248304,-150.2,0.00023013,3]
[348962884,1736896248313,-150.2,0.00023013,2]
[348962885,1736896248322,-500.0,0.00023013,3]
[348962886,1736896248333,-3607.86,0.00023013,3]
[348962887,1736896248342,-151.0,0.00023013,7]
[348962888,1736896248351,-244.33727174,0.00023013,3]
[348962889,1736896248361,-534.91,0.00023013,3]
[348962890,1736896248370,-591.27,0.00023013,3]
[348962891,1736896248380,-500.0,0.00023013,3]
[348962892,1736896248390,-643.52,0.00023013,3]
[348962893,1736896248400,-523.71,0.00023013,3]
[348962894,1736896248409,-500.0,0.00023013,3]
[348962895,1736896248419,-184.477619,0.00023013,7]
[348962896,1736896248429,-184.47761,0.00023013,7]
[348962897,1736896248438,-1376.46,0.00023013,3]
[348962898,1736896248448,-500.0,0.00023013,3]
[348962899,1736896248459,-3679.92,0.00023013,3]
[348962900,1736896248468,-530.1,0.00023013,3]
[348962901,1736896248479,-500.0,0.00023013,3]
[348962902,1736896248581,-500.0,0.00023013,3]
[348962903,1736896248592,-151.0,0.00023013,7]
[348962904,1736896248602,-500.0,0.00023013,3]
[348962905,1736896248611,-500.0,0.00023013,2]
[348962906,1736896248621,-500.0,0.00023013,3]
[348962907,1736896248630,-1374.4,0.00023013,3]
[348962908,1736896248641,-696.23,0.00023013,3]
[348962909,1736896248650,-629.1,0.00023013,3]
[348962910,1736896248660,-500.0,0.00023013,3]
[348962911,1736896248669,-707.0,0.00023013,3]
[348962912,1736896248678,-500.0,0.00023013,3]
[348962913,1736896248688,-17532.28,0.00023013,3]
[348962914,1736896248697,-954.81,0.00023013,3]
[348962915,1736896248707,-4170.23,0.00023013,2]
[348962916,1736896248717,-808.12,0.00023013,3]
[348962917,1736896248726,-1633.4,0.00023013,3]
[348962918,1736896248736,-2315.74,0.00023013,3]
[348962919,1736896248745,-559.66,0.00023013,3]
[348962920,1736896248757,-605.0386482,0.00023013,3]
[348962921,1736896248767,-852.01,0.00023013,3]
[348962922,1736896248777,-500.0,0.00023013,3]
[348962923,1736896248787,-151.0,0.00023013,7]
[348962924,1736896248796,-1229.51,0.00023013,3]
[348962925,1736896248807,-151.0,0.00023013,7]
[348962926,1736896248817,-688.77,0.00023013,3]
[348962927,1736896248826,-694.82,0.00023013,3]
[348962928,1736896248836,-776.56,0.00023013,3]
[348962929,1736896248845,-1540.76,0.00023013,3]
[348962930,1736896248855,-1661.62,0.00023013,3]
[348962931,1736896248865,-500.0,0.00023013,3]
[348962932,1736896248875,-831.19,0.00023013,3]
[348962933,1736896248885,-568.33,0.00023013,3]
[348962934,1736896248894,-800.85,0.00023013,3]
[348962935,1736896248904,-500.0,0.00023013,3]
[348962936,1736896248914,-500.0,0.00023013,3]
[348962937,1736896248923,-668.61,0.00023013,3]
[348962938,1736896248933,-500.0,0.00023013,3]
[348962939,1736896248942,-688.17,0.00023013,3]
[348962940,1736896248952,-500.0,0.00023013,3]
[348962941,1736896248962,-1818.87,0.00023013,3]
[348962942,1736896248971,-500.0,0.00023013,3]
[348962943,1736896248981,-154.0,0.00023014,2]
[348962944,1736896248991,-151.0,0.00023031,7]
[348962945,1736896249000,-204.25111102,0.00023067,2]
[348962946,1736896249010,-1200.0,0.00023091,2]
[348962947,1736896249019,-3607.86,0.0002315,3]
[348962948,1736896249030,-534.91,0.0002315,3]
[348962949,1736896249039,-591.27,0.0002315,3]
[348962950,1736896249049,-204.25111102,0.0002315,2]
[348962951,1736896249058,-500.0,0.0002315,3]
[348962952,1736896249069,-643.52,0.0002315,3]
[348962953,1736896249079,-523.71,0.0002315,3]
[348962954,1736896249088,-500.0,0.0002315,3]
[348962955,1736896249097,-445.10097076,0.0002315,3]
[348962956,1736896249183,-931.35902924,0.0002315,3]
[348962957,1736896249192,-500.0,0.0002315,3]
[348962958,1736896249202,-3679.92,0.0002315,3]
[348962959,1736896249212,-530.1,0.0002315,3]
[348962960,1736896249222,-500.0,0.0002315,3]
[348962961,1736896249231,-500.0,0.0002315,3]
[348962962,1736896249241,-500.0,0.0002315,3]
[348962963,1736896249252,-500.0,0.0002315,2]
[348962964,1736896249262,-500.0,0.0002315,3]
[348962965,1736896249271,-1374.4,0.0002315,3]
[348962966,1736896249280,-696.23,0.0002315,3]
[348962967,1736896249290,-629.1,0.0002315,3]
[348962968,1736896249299,-500.0,0.0002315,3]
[348962969,1736896249309,-707.0,0.0002315,3]
[348962970,1736896249318,-500.0,0.0002315,3]
[348962971,1736896249327,-1115.33723576,0.0002315,3]
[348962972,1736896249338,-741.32642241,0.0002315,3]
[348962976,1736896972311,400.0,0.00013973,2]
[348962979,1736897234127,-756.71395368,0.00018132,2]
[348962980,1736897234149,-135.29956806,0.00018315,2]
[348962982,1736897246120,-1298.55936762,0.00018315,2]
[348962983,1736897246142,-200.47219587,0.000185,2]
[348962984,1736897246164,-154.78330338,0.0001934,2]
[348962985,1736897246185,-295.21669662,0.00020307,2]
[348962986,1736897246206,-151.17146547,0.00020379,2]
[348962987,1736897246228,-300.0,0.0002039,2]
[348962988,1736897246252,-667.10662257,0.00020391,2]
[348963001,1736897358131,-789.87003194,0.0001584,2]
[348963002,1736897358156,-281.13167656,0.00016,2]
[348963003,1736897358179,-381.61823082,0.000176,2]
[348963008,1736897406510,715.79078193,0.0001584,12]
[348963009,1736897406532,875.54860408,0.0001584,12]
[348963048,1736897432532,-1753.04157006,0.0001584,12]
[348963052,1736897432565,-452.940282,0.0001584,12]
[348963104,1736897438394,-2071.67876193,0.0001584,12]
[348963106,1736897438403,-799.01410411,0.000189,2]
[348963108,1736897438413,-150.33,0.00019,2]
[348963110,1736897438423,-166.891748,0.00019178,2]
[348963111,1736897438433,-300.0,0.00019999,2]
[348963112,1736897438442,-274.37707881,0.00019999,2]
[348963113,1736897438452,-500.0,0.00019999,2]
[348963115,1736897438462,-500.0,0.00019999,2]
[348963117,1736897438471,-500.0,0.00019999,2]
[348963118,1736897438482,-251.17896006,0.00019999,2]
[348963119,1736897438491,-411.63806928,0.00019999,2]
[348963120,1736897438502,-605.08778046,0.00019999,2]
[348963121,1736897438512,-500.0,0.00019999,2]
[348963122,1736897438521,-9688.38856079,0.0002,5]
[348963123,1736897438533,-330.65690652,0.0002,5]
[348963130,1736897440663,-296.64061515,0.0002,5]
[348963131,1736897440676,-1188.01761794,0.0002,5]
[348963140,1736897443314,-3786.87188233,0.0002,5]
[348963142,1736897443427,-8994.2972929,0.0002,5]
[348963176,1736897446399,-340.8121835,0.0002,5]
[348963177,1736897537087,353.0,0.00025,120]
[348963178,1736897789941,1305.56139145,0.00015,2]
[348963179,1736897835322,400.0,0.00013973,2]
[348963182,1736898445099,-893.67347865,0.0001744,2]
[348963183,1736898445125,-216.02017268,0.00017616,2]
[348963184,1736898445147,-190.8703578,0.000189,2]
[348963222,1736898632763,-538.61479818,0.000189,2]
[348963224,1736898632773,-276.51411893,0.000199,2]
[348963226,1736898632784,-300.0,0.00019998,2]
[348963228,1736898632796,-674.0,0.00019998,2]
[348963230,1736898632807,-154.33,0.00019999,2]
[348963231,1736898632818,-500.0,0.00019999,2]
[348963232,1736898632829,-500.0,0.00019999,2]
[348963233,1736898632840,-500.0,0.00019999,2]
[348963234,1736898632851,-500.0,0.00019999,2]
[348963235,1736898632861,-500.0,0.00019999,2]
[348963236,1736898632873,-323.48321753,0.00019999,2]
[348963237,1736898632887,-176.51678247,0.00019999,2]
[348963238,1736898632898,-500.0,0.00019999,2]
[348963239,1736898632908,-500.0,0.00019999,2]
[348963240,1736898632918,-353.44069132,0.00019999,2]
[348963298,1736898638500,-146.55930868,0.00019999,2]
[348963300,1736898638510,-609.35004077,0.00019999,2]
[348963302,1736898638520,-396.64756811,0.00019999,2]
[348963304,1736898638529,-500.0,0.00019999,2]
[348963306,1736898638539,-500.0,0.00019999,2]
[348963307,1736898638549,-500.0,0.00019999,2]
[348963308,1736898638558,-500.0,0.00019999,2]
[348963310,1736898638568,-500.0,0.00019999,2]
[348963312,1736898638577,-198.77484624,0.00019999,2]
[348963314,1736898638588,-301.22515376,0.00019999,2]
[348963315,1736898638600,-216.30484144,0.00019999,2]
[348963316,1736898638927,-319.04225448,0.00019999,2]
[348963317,1736898638942,-500.0,0.00019999,2]
[348963318,1736898638954,-392.53696988,0.00019999,2]
[348963319,1736898638967,-500.0,0.00019999,2]
[348963320,1736898638978,-500.0,0.00019999,2]
[348963321,1736898638990,-263.64954954,0.00019999,2]
[348963322,1736898639004,-236.35045046,0.00019999,2]
[348963323,1736898639014,-4815.5354423,0.0002,5]
[348963324,1736898639025,-1619.93637917,0.0002,5]
[348963325,1736898639034,-12119.22166513,0.0002,5]
[348963401,1736898643616,-26287.94668476,0.0002,5]
[348963440,1736898716355,400.0,0.00013973,2]
[348963442,1736899111558,160.0,0.00023885,120]
[348963443,1736899171399,160.0,0.0002289,120]
[348963444,1736899231775,160.0,0.00023818,120]
[348963445,1736899291330,160.0,0.00023356,120]
[348963447,1736899351478,160.0,0.00023625,120]
[348963455,1736899630114,-648.3643599,0.00017172,2]
[348963456,1736899630136,-297.08659694,0.00017345,2]
[348963457,1736899630158,-181.46895424,0.00018339,2]
[348963458,1736899630180,-192.86872859,0.000189,2]
[348963459,1736899631134,-166.20780353,0.000189,2]
[348963460,1736899631155,-166.988782,0.00019178,2]
[348963461,1736899631178,-300.0,0.00019418,2]
[348963462,1736899631200,-257.53722765,0.00019418,2]
[348963465,1736899702321,400.0,0.00013973,2]
[348963516,1736899833104,-461.78639607,0.00018278,2]
[348963517,1736899833114,-171.34044479,0.00018363,2]
[348963518,1736899833126,-366.87969214,0.00018363,2]
[348963519,1736899833136,-256.88741917,0.00018463,2]
[348963564,1736899838644,-18.11258083,0.00018463,2]
[348963566,1736899838654,-300.0,0.00018463,2]
[348963568,1736899838664,-12880.55795599,0.00018464,2]
[348963570,1736899838675,-7313.23918788,0.00018464,2]
[348963580,1736899838757,-98.97042369,0.00018464,2]
[348963602,1736899838907,-4607.23243244,0.00018464,2]
[348963604,1736899838917,-241.94985409,0.00019799,2]
[348963606,1736899838926,-325.799,0.00019899,2]
[348963607,1736899838935,-843.10188816,0.00019899,2]
[348963609,1736899838945,-843.10188816,0.00019899,2]
[348963611,1736899838954,-843.10188816,0.000199,2]
[348963613,1736899838964,-843.10188816,0.000199,2]
[348963615,1736899838976,-843.10188816,0.000199,2]
[348963616,1736899838985,-204.25111102,0.000199,2]
[348963618,1736899838995,-152.0,0.00019962,2]
[348963620,1736899839004,-500.0,0.00019989,2]
[348963622,1736899839014,-500.0,0.00019989,2]
[348963624,1736899839023,-500.0,0.00019989,2]
[348963626,1736899839032,-500.0,0.00019989,2]
[348963627,1736899839043,-500.0,0.00019989,2]
[348963629,1736899839053,-500.0,0.00019989,2]
[348963631,1736899839062,-500.0,0.00019989,2]
[348963633,1736899839072,-500.0,0.00019989,2]
[348963634,1736899839080,-550.0,0.00019989,2]
[348963636,1736899839090,-500.0,0.00019989,2]
[348963638,1736899839099,-173.82823873,0.00019989,2]
[348963640,1736899839108,-500.0,0.00019989,2]
[348963642,1736899839118,-500.0,0.00019989,2]
[348963644,1736899839128,-222.9469705,0.00019989,2]
[348963646,1736899839137,-379.06009845,0.00019989,2]
[348963648,1736899839151,-120.93990155,0.00019989,2]
[348963650,1736899839160,-500.0,0.00019989,2]
[348963652,1736899839169,-500.0,0.00019989,2]
[348963654,1736899839178,-500.0,0.00019989,2]
[348963655,1736899839187,-438.40009845,0.00019989,2]
[348964347,1736899846685,-61.59990155,0.00019989,2]
[348964350,1736899846696,-500.0,0.00019989,2]
[348964352,1736899846705,-500.0,0.00019989,2]
[348964354,1736899846715,-500.0,0.00019989,2]
[348964356,1736899846725,-500.0,0.00019989,2]
[348964358,1736899846735,-500.0,0.00019989,2]
[348964360,1736899846744,-500.0,0.00019989,2]
[348964362,1736899846753,-500.0,0.00019989,2]
[348964364,1736899846763,-500.0,0.00019989,2]
[348964366,1736899846772,-500.0,0.00019989,2]
[348964368,1736899846781,-500.0,0.00019989,2]
[348964370,1736899846791,-500.0,0.00019989,2]
[348964372,1736899846801,-500.0,0.00019989,2]
[348964374,1736899846810,-500.0,0.00019989,2]
[348964376,1736899846820,-500.0,0.00019989,2]
[348964378,1736899846830,-500.0,0.00019989,2]
[348964380,1736899846840,-500.0,0.00019989,2]
[348964382,1736899846850,-500.0,0.00019989,2]
[348964384,1736899846860,-600.0,0.00019989,2]
[348964386,1736899846870,-500.0,0.00019989,2]
[348964388,1736899846880,-500.0,0.00019989,2]
[348964390,1736899846890,-500.0,0.00019989,2]
[348964392,1736899846899,-500.0,0.00019989,2]
[348964394,1736899846909,-500.0,0.00019989,2]
[348964396,1736899846919,-500.0,0.00019989,2]
[348964398,1736899846928,-25386.32358929,0.00019991,5]
[348964400,1736899846938,-9470.11874358,0.00019991,5]
[348964402,1736899846948,-160.0,0.00019999,2]
[348964404,1736899846957,-156.39348353,0.00019999,2]
[348964406,1736899846969,-189.61546268,0.00019999,2]
[348964408,1736899846978,-399770.43636492,0.0002,5]
[348964410,1736899846990,-500.0,0.0002,5]
[348964678,1736900682578,400.0,0.00013973,2]
[348964680,1736900839138,-756.71395368,0.00018711,2]
[348964681,1736900839161,-480.57175283,0.000189,2]
[348964682,1736900839183,-300.0,0.00018963,2]
[348964683,1736900839206,-191.61686313,0.00018963,2]
[348964723,1736901031901,-320.38116855,0.000189,2]
[348964725,1736901031912,-12079.05220694,0.00018963,2]
[348964730,1736901031959,-3740.38276708,0.00018963,2]
[348964731,1736901031975,-6515.56502598,0.00018963,2]
[348964733,1736901031984,-300.0,0.00018963,2]
[348964735,1736901031995,-243.7149391,0.00018964,2]
[348964772,1736901037822,-14365.85181372,0.00018964,2]
[348964774,1736901037834,-7972.76515507,0.00018964,2]
[348964780,1736901037876,-2317.66809211,0.00018964,2]
[348964782,1736901037885,-581.687,0.0001937,2]
[348964784,1736901037896,-231.55937779,0.00019843,2]
[348964786,1736901037907,-204.25111102,0.000199,2]
[348964788,1736901037919,-330.08696795,0.00019942,2]
[348964790,1736901037931,-304.4927486,0.00019942,2]
[348964792,1736901037942,-500.0,0.00019942,2]
[348964794,1736901037951,-500.0,0.00019942,2]
[348964796,1736901037962,-500.0,0.00019942,2]
[348964798,1736901037972,-500.0,0.00019942,2]
[348964800,1736901037982,-500.0,0.00019942,2]
[348964802,1736901037992,-604.70629979,0.00019942,2]
[348964804,1736901038002,-500.0,0.00019942,2]
[348964806,1736901038012,-500.0,0.00019942,2]
[348964808,1736901038022,-500.0,0.00019942,2]
[348964811,1736901038032,-483.04941872,0.00019942,2]
[348964813,1736901038041,-500.0,0.00019942,2]
[348964815,1736901038050,-500.0,0.00019942,2]
[348964817,1736901038060,-500.0,0.00019942,2]